[Event "Live Chess"]
[Site "Chess.com"]
[Date "2023.05.20"]
[Round "-"]
[White "JoshMcK"]
[Black "Nazar_777"]
[Result "0-1"]
[WhiteElo "1568"]
[BlackElo "1611"]
[TimeControl "300"]
[EndTime "13:54:16 PDT"]
[Termination "Nazar_777 won by resignation"]

1. e4 {[%clk 0:04:59.2]} 1... e6 {[%clk 0:04:54.3]} 2. d4 {[%clk 0:04:55.9]}
2... a6 {[%clk 0:04:53.2]} 3. Nf3 {[%clk 0:04:53.4]} 3... h5 {[%clk 0:04:52.4]}
4. Nc3 {[%clk 0:04:52]} 4... c5 {[%clk 0:04:51.2]} 5. d5 {[%clk 0:04:50.2]} 5...
Nf6 {[%clk 0:04:44.6]} 6. dxe6 {[%clk 0:04:48.8]} 6... fxe6 {[%clk 0:04:43.5]}
7. e5 {[%clk 0:04:48.2]} 7... Ng4 {[%clk 0:04:42.2]} 8. h3 {[%clk 0:04:45.3]}
8... Nh6 {[%clk 0:04:40.8]} 9. Bd3 {[%clk 0:04:37.2]} 9... Qc7 {[%clk
0:04:39.3]} 10. Bg6+ {[%clk 0:04:31.3]} 10... Kd8 {[%clk 0:04:38.2]} 11. Bg5+
{[%clk 0:04:26.9]} 11... Be7 {[%clk 0:04:35.8]} 12. Bxe7+ {[%clk 0:04:23.7]}
12... Kxe7 {[%clk 0:04:34.8]} 13. Qd2 {[%clk 0:04:22.4]} 13... Nc6 {[%clk
0:04:13.4]} 14. Qg5+ {[%clk 0:04:18.5]} 14... Kf8 {[%clk 0:04:12.1]} 15. Qf4+
{[%clk 0:04:05.3]} 15... Kg8 {[%clk 0:04:08.9]} 16. Ng5 {[%clk 0:03:59.6]} 16...
Qxe5+ {[%clk 0:03:59.8]} 17. Qxe5 {[%clk 0:03:57.2]} 17... Nxe5 {[%clk
0:03:58.4]} 18. O-O-O {[%clk 0:03:55.8]} 18... Nxg6 {[%clk 0:03:57.1]} 0-1

[Event "Live Chess"]
[Site "Chess.com"]
[Date "2023.05.20"]
[Round "-"]
[White "LL220284LL"]
[Black "defenderalist"]
[Result "1-0"]
[WhiteElo "2391"]
[BlackElo "1612"]
[TimeControl "300"]
[EndTime "13:54:28 PDT"]
[Termination "LL220284LL won by checkmate"]

1. d4 {[%clk 0:04:58.9]} 1... Nf6 {[%clk 0:04:57.9]} 2. Nc3 {[%clk 0:04:58.3]}
2... e6 {[%clk 0:04:57.3]} 3. Bf4 {[%clk 0:04:57.6]} 3... d5 {[%clk 0:04:56.4]}
4. e3 {[%clk 0:04:56.4]} 4... Nbd7 {[%clk 0:04:55.2]} 5. Nf3 {[%clk 0:04:54.6]}
5... Be7 {[%clk 0:04:52]} 6. Bd3 {[%clk 0:04:53.3]} 6... b6 {[%clk 0:04:49.4]}
7. O-O {[%clk 0:04:51.2]} 7... Bb7 {[%clk 0:04:48.7]} 8. h3 {[%clk 0:04:50.4]}
8... O-O {[%clk 0:04:47.5]} 9. Ne2 {[%clk 0:04:49.7]} 9... c5 {[%clk 0:04:45.8]}
10. c3 {[%clk 0:04:49.3]} 10... c4 {[%clk 0:04:44.4]} 11. Bc2 {[%clk 0:04:48.1]}
11... Ne8 {[%clk 0:04:39.2]} 12. Ne5 {[%clk 0:04:47.2]} 12... Nxe5 {[%clk
0:04:37.9]} 13. Bxe5 {[%clk 0:04:47.1]} 13... f6 {[%clk 0:04:36.7]} 14. Bh2
{[%clk 0:04:46.6]} 14... Bd6 {[%clk 0:04:33.9]} 15. Nf4 {[%clk 0:04:44.1]} 15...
e5 {[%clk 0:04:30.1]} 16. Qh5 {[%clk 0:04:40.8]} 16... e4 {[%clk 0:04:22.8]} 17.
f3 {[%clk 0:04:36.3]} 17... f5 {[%clk 0:04:15.3]} 18. fxe4 {[%clk 0:04:30.6]}
18... fxe4 {[%clk 0:04:13.6]} 19. Ne6 {[%clk 0:04:27]} 19... Rxf1+ {[%clk
0:04:09.5]} 20. Rxf1 {[%clk 0:04:25.3]} 20... Bxh2+ {[%clk 0:04:07.9]} 21. Kxh2
{[%clk 0:04:25.2]} 21... Qd6+ {[%clk 0:03:55]} 22. Nf4 {[%clk 0:04:23.7]} 22...
Nf6 {[%clk 0:03:52.1]} 23. Qf5 {[%clk 0:04:21.2]} 23... Rf8 {[%clk 0:03:46.9]}
24. Kg1 {[%clk 0:04:18.9]} 24... Bc8 {[%clk 0:03:39]} 25. Qg5 {[%clk 0:04:16.5]}
25... h6 {[%clk 0:03:35]} 26. Qg3 {[%clk 0:04:15.1]} 26... g5 {[%clk 0:03:24.1]}
27. Nh5 {[%clk 0:04:12.2]} 27... Qxg3 {[%clk 0:03:17.5]} 28. Nxg3 {[%clk
0:04:12.1]} 28... Kg7 {[%clk 0:03:08.1]} 29. b3 {[%clk 0:04:10.8]} 29... b5
{[%clk 0:03:02.4]} 30. bxc4 {[%clk 0:04:10.2]} 30... bxc4 {[%clk 0:03:01.3]} 31.
Rb1 {[%clk 0:04:08.7]} 31... a6 {[%clk 0:02:43]} 32. Rb6 {[%clk 0:04:06.8]}
32... Re8 {[%clk 0:02:17.7]} 33. Ba4 {[%clk 0:04:04.7]} 33... Rf8 {[%clk
0:02:14.5]} 34. Bc6 {[%clk 0:04:02.7]} 34... Bd7 {[%clk 0:02:04.9]} 35. Bxd7
{[%clk 0:03:59.6]} 35... Nxd7 {[%clk 0:02:03.7]} 36. Rxa6 {[%clk 0:03:58.4]}
36... Rb8 {[%clk 0:01:50]} 37. Ra7 {[%clk 0:03:57.1]} 37... Rd8 {[%clk
0:01:47.4]} 38. Nf5+ {[%clk 0:03:55.6]} 38... Kf6 {[%clk 0:01:46]} 39. Nxh6
{[%clk 0:03:53.9]} 39... Nb6 {[%clk 0:01:38.7]} 40. Ra6 {[%clk 0:03:52.1]} 40...
Rb8 {[%clk 0:01:37.1]} 41. Ng4+ {[%clk 0:03:49.2]} 41... Kf5 {[%clk 0:01:32.7]}
42. a4 {[%clk 0:03:47.9]} 42... Nd7 {[%clk 0:01:25.8]} 43. Nh6# {[%clk
0:03:45.9]} 1-0

[Event "Live Chess"]
[Site "Chess.com"]
[Date "2023.05.20"]
[Round "-"]
[White "fso"]
[Black "wot-not"]
[Result "1-0"]
[WhiteElo "2247"]
[BlackElo "1511"]
[TimeControl "300"]
[EndTime "13:54:33 PDT"]
[Termination "fso won by resignation"]

1. e4 {[%clk 0:04:58.4]} 1... e5 {[%clk 0:04:55.2]} 2. f4 {[%clk 0:04:52.5]}
2... d6 {[%clk 0:04:53.2]} 3. Nf3 {[%clk 0:04:50.8]} 3... f5 {[%clk 0:04:48.4]}
4. Bc4 {[%clk 0:04:49.2]} 4... fxe4 {[%clk 0:04:47]} 5. Nxe5 {[%clk 0:04:39.5]}
5... Nf6 {[%clk 0:04:45.2]} 6. Nf7 {[%clk 0:04:30.4]} 6... Qe7 {[%clk
0:04:37.8]} 7. Nxh8 {[%clk 0:04:28.7]} 7... d5 {[%clk 0:04:37.1]} 8. Be2 {[%clk
0:04:26.2]} 8... Nc6 {[%clk 0:04:32.6]} 9. O-O {[%clk 0:04:24.5]} 9... Nd4
{[%clk 0:04:31.6]} 10. d3 {[%clk 0:04:23.1]} 10... Nxe2+ {[%clk 0:04:26.7]} 11.
Qxe2 {[%clk 0:04:21.7]} 11... Bg4 {[%clk 0:04:26.4]} 12. Qe1 {[%clk 0:04:12.6]}
12... O-O-O {[%clk 0:04:24.7]} 13. Nc3 {[%clk 0:04:01.8]} 13... Qc5+ {[%clk
0:04:16.7]} 14. Kh1 {[%clk 0:03:57.5]} 14... Bh5 {[%clk 0:04:00.5]} 15. dxe4
{[%clk 0:03:49.4]} 15... Nxe4 {[%clk 0:03:54.3]} 16. Nxe4 {[%clk 0:03:47.5]}
16... dxe4 {[%clk 0:03:53.7]} 17. Qxe4 {[%clk 0:03:39.5]} 17... Bd6 {[%clk
0:03:50.8]} 18. Be3 {[%clk 0:03:28.2]} 18... Qb5 {[%clk 0:03:40.3]} 19. c4
{[%clk 0:03:21.6]} 19... Qa5 {[%clk 0:03:26.5]} 20. c5 {[%clk 0:03:12.7]} 20...
Bxc5 {[%clk 0:03:20.7]} 21. Qf5+ {[%clk 0:03:10.7]} 21... Kb8 {[%clk 0:03:18]}
22. Qxh5 {[%clk 0:03:09]} 22... Rxh8 {[%clk 0:03:14.9]} 23. Qxc5 {[%clk
0:03:07.4]} 1-0

[Event "Live Chess"]
[Site "Chess.com"]
[Date "2023.05.20"]
[Round "-"]
[White "Conradical12"]
[Black "luckywookie"]
[Result "1-0"]
[WhiteElo "1569"]
[BlackElo "743"]
[TimeControl "300"]
[EndTime "13:54:44 PDT"]
[Termination "Conradical12 won by checkmate"]

1. e4 {[%clk 0:04:56.8]} 1... c6 {[%clk 0:04:58.7]} 2. Nf3 {[%clk 0:04:52.9]}
2... d5 {[%clk 0:04:57.3]} 3. exd5 {[%clk 0:04:51.3]} 3... cxd5 {[%clk
0:04:55.1]} 4. c4 {[%clk 0:04:51.2]} 4... dxc4 {[%clk 0:04:53.6]} 5. Bxc4 {[%clk
0:04:49.6]} 5... Nf6 {[%clk 0:04:48]} 6. O-O {[%clk 0:04:47.4]} 6... Nc6 {[%clk
0:04:46.9]} 7. Re1 {[%clk 0:04:44.6]} 7... e6 {[%clk 0:04:46.1]} 8. Nc3 {[%clk
0:04:42.9]} 8... Bc5 {[%clk 0:04:42]} 9. d4 {[%clk 0:04:41.5]} 9... Bb4 {[%clk
0:04:35.1]} 10. a3 {[%clk 0:04:39.5]} 10... Bxc3 {[%clk 0:04:34]} 11. bxc3
{[%clk 0:04:38.4]} 11... O-O {[%clk 0:04:31.5]} 12. Bd3 {[%clk 0:04:37.8]} 12...
Re8 {[%clk 0:04:29.7]} 13. Bg5 {[%clk 0:04:35.2]} 13... Qc7 {[%clk 0:04:09.4]}
14. Bxf6 {[%clk 0:04:33.7]} 14... gxf6 {[%clk 0:04:07.4]} 15. d5 {[%clk
0:04:32.2]} 15... Ne7 {[%clk 0:04:00.8]} 16. dxe6 {[%clk 0:04:28.8]} 16... fxe6
{[%clk 0:03:59.7]} 17. Bc2 {[%clk 0:04:26.7]} 17... Kf7 {[%clk 0:03:57.8]} 18.
Qd3 {[%clk 0:04:24.3]} 18... Rf8 {[%clk 0:03:40.6]} 19. Qxh7+ {[%clk 0:04:22]}
19... Ke8 {[%clk 0:03:38.9]} 20. Bg6+ {[%clk 0:04:19.8]} 20... Kd8 {[%clk
0:03:35.7]} 21. Rad1+ {[%clk 0:04:17.3]} 21... Bd7 {[%clk 0:03:30.7]} 22. Qg7
{[%clk 0:04:15.3]} 22... Rg8 {[%clk 0:03:28]} 23. Qf7 {[%clk 0:04:11.9]} 23...
Rxg6 {[%clk 0:03:23]} 24. Qf8# {[%clk 0:04:08.1]} 1-0

[Event "Live Chess"]
[Site "Chess.com"]
[Date "2023.05.20"]
[Round "-"]
[White "tehanu"]
[Black "YrrriKharkiv"]
[Result "0-1"]
[WhiteElo "1119"]
[BlackElo "2069"]
[TimeControl "300"]
[EndTime "13:54:45 PDT"]
[Termination "YrrriKharkiv won on time"]

1. e4 {[%clk 0:04:35]} 1... e6 {[%clk 0:04:58]} 2. d4 {[%clk 0:04:33.9]} 2... d5
{[%clk 0:04:56.8]} 3. e5 {[%clk 0:04:33.1]} 3... c5 {[%clk 0:04:55.5]} 4. c3
{[%clk 0:04:32.2]} 4... Qa5 {[%clk 0:04:54.1]} 5. Nf3 {[%clk 0:04:29.9]} 5...
cxd4 {[%clk 0:04:52.7]} 6. Nxd4 {[%clk 0:04:28.2]} 6... Nc6 {[%clk 0:04:51.8]}
7. Nxc6 {[%clk 0:04:26.9]} 7... bxc6 {[%clk 0:04:49.9]} 8. Qb3 {[%clk
0:04:22.5]} 8... Qc7 {[%clk 0:04:47.6]} 9. Be2 {[%clk 0:04:10.8]} 9... Qxe5
{[%clk 0:04:44.8]} 10. Qa4 {[%clk 0:03:19.2]} 10... Qc7 {[%clk 0:04:39.4]} 11.
Nd2 {[%clk 0:03:15.3]} 11... Bd7 {[%clk 0:04:31.3]} 12. Nb3 {[%clk 0:03:03.9]}
12... Nf6 {[%clk 0:04:16.2]} 13. Nd4 {[%clk 0:03:02]} 13... e5 {[%clk
0:04:10.8]} 14. Nc2 {[%clk 0:02:48.2]} 14... Bd6 {[%clk 0:04:06.4]} 15. O-O
{[%clk 0:02:34.1]} 15... e4 {[%clk 0:03:59.7]} 0-1

[Event "Live Chess"]
[Site "Chess.com"]
[Date "2023.05.20"]
[Round "-"]
[White "lordjimvi"]
[Black "GEMdzq"]
[Result "0-1"]
[WhiteElo "391"]
[BlackElo "2221"]
[TimeControl "300"]
[EndTime "13:54:47 PDT"]
[Termination "GEMdzq won by resignation"]

1. f4 {[%clk 0:04:47.4]} 1... g6 {[%clk 0:04:58.2]} 2. Nf3 {[%clk 0:04:43.9]}
2... Bg7 {[%clk 0:04:58.1]} 3. Ng5 {[%clk 0:04:42.2]} 3... h6 {[%clk 0:04:54.2]}
4. Ne4 {[%clk 0:04:40]} 4... d5 {[%clk 0:04:52.8]} 5. Nec3 {[%clk 0:04:38.6]}
5... c5 {[%clk 0:04:51.6]} 6. e4 {[%clk 0:04:36.1]} 6... d4 {[%clk 0:04:49.2]}
7. Nd5 {[%clk 0:04:34.6]} 7... e6 {[%clk 0:04:45.8]} 8. Ne3 {[%clk 0:04:29.9]}
8... dxe3 {[%clk 0:04:42.5]} 9. dxe3 {[%clk 0:04:29.2]} 9... Qxd1+ {[%clk
0:04:36.8]} 10. Kxd1 {[%clk 0:04:27.8]} 10... Nf6 {[%clk 0:04:36.2]} 11. Nc3
{[%clk 0:04:21.9]} 11... Nc6 {[%clk 0:04:33.1]} 12. e5 {[%clk 0:04:19.8]} 12...
Nd5 {[%clk 0:04:31.7]} 13. Nxd5 {[%clk 0:04:17.1]} 13... exd5 {[%clk 0:04:31.6]}
14. Bb5 {[%clk 0:04:11.4]} 0-1

[Event "Live Chess"]
[Site "Chess.com"]
[Date "2023.05.20"]
[Round "-"]
[White "LiamClery2020"]
[Black "1600x"]
[Result "1/2-1/2"]
[WhiteElo "2084"]
[BlackElo "1791"]
[TimeControl "300"]
[EndTime "13:54:52 PDT"]
[Termination "Game drawn by agreement"]

1. e4 {[%clk 0:04:59.1]} 1... b6 {[%clk 0:04:49.4]} 2. d4 {[%clk 0:04:57.7]}
2... Nc6 {[%clk 0:04:47.6]} 3. d5 {[%clk 0:04:56.5]} 3... Na5 {[%clk 0:04:46.2]}
4. b4 {[%clk 0:04:55.3]} 4... Nb7 {[%clk 0:04:44.9]} 5. a3 {[%clk 0:04:53.5]}
5... a5 {[%clk 0:04:43.2]} 6. b5 {[%clk 0:04:52.5]} 6... Nc5 {[%clk 0:04:41.2]}
7. Nf3 {[%clk 0:04:49.2]} 7... Nxe4 {[%clk 0:04:38.8]} 8. Bd3 {[%clk 0:04:45.8]}
8... Nc5 {[%clk 0:04:37.5]} 9. O-O {[%clk 0:04:43.8]} 9... Nf6 {[%clk
0:04:35.5]} 10. Bg5 {[%clk 0:04:42.2]} 10... e6 {[%clk 0:04:32.8]} 11. Re1
{[%clk 0:04:40.2]} 11... Bb7 {[%clk 0:04:29.5]} 12. Nc3 {[%clk 0:04:38.5]} 12...
Be7 {[%clk 0:04:26.7]} 13. dxe6 {[%clk 0:04:37.1]} 13... fxe6 {[%clk 0:04:25.6]}
14. Bxf6 {[%clk 0:04:34.1]} 14... Bxf6 {[%clk 0:04:24.4]} 15. Qd2 {[%clk
0:04:30.4]} 15... Bxf3 {[%clk 0:04:20.1]} 16. gxf3 {[%clk 0:04:29.6]} 16... O-O
{[%clk 0:04:18.6]} 17. Kh1 {[%clk 0:04:27.9]} 17... Bg5 {[%clk 0:04:15.8]} 18.
Qe2 {[%clk 0:04:23.2]} 18... Nxd3 {[%clk 0:04:08.6]} 19. Qxd3 {[%clk 0:04:22.4]}
19... Bf4 {[%clk 0:04:07.4]} 20. Rad1 {[%clk 0:04:19]} 20... Qh4 {[%clk
0:04:06]} 21. Kg1 {[%clk 0:04:12.6]} 21... Qh3 {[%clk 0:04:03.7]} 1/2-1/2

[Event "Live Chess"]
[Site "Chess.com"]
[Date "2023.05.20"]
[Round "-"]
[White "weibs440"]
[Black "Doge_Dandolo"]
[Result "0-1"]
[WhiteElo "927"]
[BlackElo "2008"]
[TimeControl "300"]
[EndTime "13:54:55 PDT"]
[Termination "Doge_Dandolo won by resignation"]

1. e4 {[%clk 0:04:58.6]} 1... c6 {[%clk 0:04:58.4]} 2. d4 {[%clk 0:04:55.2]}
2... d5 {[%clk 0:04:57.7]} 3. f3 {[%clk 0:04:54.8]} 3... dxe4 {[%clk 0:04:56.6]}
4. fxe4 {[%clk 0:04:54.7]} 4... e5 {[%clk 0:04:55]} 5. Nf3 {[%clk 0:04:53.9]}
5... Bg4 {[%clk 0:04:53.8]} 6. Bc4 {[%clk 0:04:51.9]} 6... Nd7 {[%clk
0:04:52.6]} 7. O-O {[%clk 0:04:42.9]} 7... Ngf6 {[%clk 0:04:51]} 8. Bg5 {[%clk
0:04:35]} 8... Bd6 {[%clk 0:04:46.2]} 9. c3 {[%clk 0:04:29.6]} 9... Qc7 {[%clk
0:04:44.2]} 10. Nbd2 {[%clk 0:04:26.8]} 10... O-O-O {[%clk 0:04:38.8]} 11. h3
{[%clk 0:04:16.3]} 11... Bh5 {[%clk 0:04:32.6]} 12. Qe1 {[%clk 0:04:05.5]} 12...
h6 {[%clk 0:04:30.3]} 13. Bh4 {[%clk 0:04:03.4]} 13... g5 {[%clk 0:04:28.2]} 14.
Bg3 {[%clk 0:03:59.7]} 14... g4 {[%clk 0:04:27.2]} 15. hxg4 {[%clk 0:03:51.8]}
15... Nxg4 {[%clk 0:04:25]} 16. b4 {[%clk 0:03:43.3]} 16... exd4 {[%clk
0:04:20.2]} 17. Nxd4 {[%clk 0:03:33.4]} 17... Bxg3 {[%clk 0:04:18]} 18. Qb1
{[%clk 0:02:54.1]} 18... Bf2+ {[%clk 0:04:15.1]} 19. Rxf2 {[%clk 0:02:41.9]}
19... Qh2+ {[%clk 0:04:10.7]} 20. Kf1 {[%clk 0:02:39.5]} 20... Qh1+ {[%clk
0:04:06.9]} 21. Ke2 {[%clk 0:02:37.5]} 21... Nxf2+ {[%clk 0:04:05.3]} 22. Kxf2
{[%clk 0:02:33.9]} 22... Qh4+ {[%clk 0:03:59.1]} 23. Kg1 {[%clk 0:02:21.2]}
23... Ne5 {[%clk 0:03:56.7]} 24. Nf1 {[%clk 0:01:50.3]} 24... Nxc4 {[%clk
0:03:51.4]} 0-1

[Event "Live Chess"]
[Site "Chess.com"]
[Date "2023.05.20"]
[Round "-"]
[White "manthanit"]
[Black "chessfiction"]
[Result "0-1"]
[WhiteElo "1017"]
[BlackElo "2390"]
[TimeControl "300"]
[EndTime "13:55:01 PDT"]
[Termination "chessfiction won by checkmate"]

1. e4 {[%clk 0:04:58.9]} 1... e6 {[%clk 0:04:57.5]} 2. Nf3 {[%clk 0:04:57.8]}
2... d5 {[%clk 0:04:57.4]} 3. exd5 {[%clk 0:04:57.1]} 3... exd5 {[%clk
0:04:57.1]} 4. d4 {[%clk 0:04:56.6]} 4... Nf6 {[%clk 0:04:55.5]} 5. h3 {[%clk
0:04:54.4]} 5... Bd6 {[%clk 0:04:55.4]} 6. c3 {[%clk 0:04:53.1]} 6... Nc6 {[%clk
0:04:55.3]} 7. Bg5 {[%clk 0:04:52.1]} 7... Be6 {[%clk 0:04:55.2]} 8. Bd3 {[%clk
0:04:51.1]} 8... Qd7 {[%clk 0:04:54.5]} 9. Nbd2 {[%clk 0:04:44.6]} 9... O-O-O
{[%clk 0:04:53.6]} 10. Bb5 {[%clk 0:04:42.1]} 10... Rde8 {[%clk 0:04:52.6]} 11.
a4 {[%clk 0:04:40.1]} 11... Bxh3+ {[%clk 0:04:50.8]} 12. Be2 {[%clk 0:04:34.4]}
12... Bxg2 {[%clk 0:04:49.7]} 13. Rh2 {[%clk 0:03:53.6]} 13... Qg4 {[%clk
0:04:48.5]} 14. Rxg2 {[%clk 0:03:38.4]} 14... Qxg2 {[%clk 0:04:45.4]} 15. Qc2
{[%clk 0:03:33.9]} 15... Ne4 {[%clk 0:04:41.6]} 16. O-O-O {[%clk 0:03:28.7]}
16... Nxg5 {[%clk 0:04:39.7]} 17. Qb3 {[%clk 0:03:17.4]} 17... Rxe2 {[%clk
0:04:35.7]} 18. Rg1 {[%clk 0:02:52.8]} 18... Qxf3 {[%clk 0:04:26.6]} 19. Nxf3
{[%clk 0:02:49.4]} 19... Nxf3 {[%clk 0:04:26.5]} 20. Rxg7 {[%clk 0:02:43.9]}
20... Bf4+ {[%clk 0:04:25.1]} 21. Kd1 {[%clk 0:02:42]} 21... Rd2+ {[%clk
0:04:19.9]} 22. Kc1 {[%clk 0:02:38.8]} 22... Rxf2+ {[%clk 0:04:16.6]} 23. Kb1
{[%clk 0:02:37.3]} 23... Nd2+ {[%clk 0:04:14.5]} 24. Ka2 {[%clk 0:02:33.4]}
24... Nxb3 {[%clk 0:04:14.4]} 25. Kxb3 {[%clk 0:02:32.9]} 25... Re8 {[%clk
0:04:14.1]} 26. Rxf7 {[%clk 0:02:31.9]} 26... Ree2 {[%clk 0:04:13.3]} 27. Rxh7
{[%clk 0:02:29.8]} 27... Rxb2+ {[%clk 0:04:11.3]} 28. Ka3 {[%clk 0:02:28.4]}
28... Ra2+ {[%clk 0:04:10.8]} 29. Kb3 {[%clk 0:02:26.2]} 29... Rfb2# {[%clk
0:04:10.7]} 0-1

[Event "Live Chess"]
[Site "Chess.com"]
[Date "2023.05.20"]
[Round "-"]
[White "VovaOvchar1990"]
[Black "Olisingapore"]
[Result "1-0"]
[WhiteElo "1227"]
[BlackElo "1868"]
[TimeControl "300"]
[EndTime "13:55:08 PDT"]
[Termination "VovaOvchar1990 won by resignation"]

1. g3 {[%clk 0:04:57.3]} 1... d5 {[%clk 0:04:58.8]} 2. Bg2 {[%clk 0:04:56]} 2...
c5 {[%clk 0:04:58.4]} 3. Nc3 {[%clk 0:04:51.7]} 3... Nc6 {[%clk 0:04:58]} 4.
Nxd5 {[%clk 0:04:47.8]} 4... Nf6 {[%clk 0:04:51.7]} 5. Nxf6+ {[%clk 0:04:41.1]}
5... exf6 {[%clk 0:04:51.6]} 6. c3 {[%clk 0:04:32.2]} 6... Be7 {[%clk
0:04:42.6]} 7. Qa4 {[%clk 0:04:26]} 7... O-O {[%clk 0:04:16.6]} 8. Bxc6 {[%clk
0:04:22.9]} 8... bxc6 {[%clk 0:04:14.4]} 9. Qxc6 {[%clk 0:04:20.2]} 9... Bg4
{[%clk 0:04:10.6]} 10. Nf3 {[%clk 0:04:11.6]} 10... Re8 {[%clk 0:03:52.2]} 11.
Qe4 {[%clk 0:04:04.6]} 11... Bh3 {[%clk 0:03:46.1]} 12. Qh4 {[%clk 0:04:01.2]}
12... Bg2 {[%clk 0:03:40.6]} 13. Rg1 {[%clk 0:03:58.6]} 13... Bxf3 {[%clk
0:03:39.4]} 14. exf3 {[%clk 0:03:52.9]} 14... f5 {[%clk 0:03:35]} 15. Qh3 {[%clk
0:03:42.3]} 15... Bg5+ {[%clk 0:03:28.7]} 16. Kf1 {[%clk 0:03:40.1]} 16... Qd3+
{[%clk 0:03:23.1]} 17. Kg2 {[%clk 0:03:37.3]} 17... Re2 {[%clk 0:03:03.7]} 18.
b3 {[%clk 0:03:26.2]} 18... Rae8 {[%clk 0:02:56.9]} 19. Rf1 {[%clk 0:03:12.2]}
19... R8e6 {[%clk 0:02:43.1]} 20. Qh5 {[%clk 0:02:54.8]} 20... Bxd2 {[%clk
0:02:24.8]} 21. Bxd2 {[%clk 0:02:49.5]} 21... Qxd2 {[%clk 0:02:24.1]} 22. Qxf5
{[%clk 0:02:44.4]} 22... g6 {[%clk 0:02:13.9]} 23. Qxc5 {[%clk 0:02:40.9]} 23...
Rd6 {[%clk 0:01:54.5]} 24. Rad1 {[%clk 0:02:32.8]} 24... Rxf2+ {[%clk
0:01:47.1]} 25. Qxf2 {[%clk 0:02:27]} 25... Qxf2+ {[%clk 0:01:45.9]} 26. Kxf2
{[%clk 0:02:23.8]} 26... Ra6 {[%clk 0:01:37]} 27. a4 {[%clk 0:02:21]} 27... Rc6
{[%clk 0:01:32.9]} 28. Rd3 {[%clk 0:02:18.2]} 28... Rb6 {[%clk 0:01:28.6]} 29.
c4 {[%clk 0:02:16.7]} 29... a5 {[%clk 0:01:25.7]} 30. Rc1 {[%clk 0:02:14.7]}
30... Rc6 {[%clk 0:01:05.3]} 31. c5 {[%clk 0:02:13.3]} 31... Kf8 {[%clk
0:01:02.8]} 32. Rd6 {[%clk 0:02:11.7]} 32... Rc7 {[%clk 0:01:00]} 33. c6 {[%clk
0:02:10.1]} 33... Ke7 {[%clk 0:00:57.8]} 34. Rd7+ {[%clk 0:02:07.9]} 34... Rxd7
{[%clk 0:00:57.2]} 35. cxd7 {[%clk 0:02:06.2]} 35... Kxd7 {[%clk 0:00:57.1]} 36.
Ke3 {[%clk 0:02:04.1]} 36... Kd6 {[%clk 0:00:56.3]} 37. Kf4 {[%clk 0:02:02.7]}
37... f6 {[%clk 0:00:54.9]} 38. g4 {[%clk 0:02:01.3]} 38... Kd5 {[%clk
0:00:54.3]} 39. h4 {[%clk 0:02:00.1]} 39... Kd4 {[%clk 0:00:52.2]} 40. g5 {[%clk
0:01:58.7]} 40... f5 {[%clk 0:00:50.8]} 41. h5 {[%clk 0:01:56.1]} 41... gxh5
{[%clk 0:00:49.4]} 42. Kxf5 {[%clk 0:01:54.7]} 1-0

[Event "Live Chess"]
[Site "Chess.com"]
[Date "2023.05.20"]
[Round "-"]
[White "parcellforce"]
[Black "WelshTiger"]
[Result "0-1"]
[WhiteElo "1384"]
[BlackElo "2396"]
[TimeControl "300"]
[EndTime "13:55:11 PDT"]
[Termination "WelshTiger won by resignation"]

1. d4 {[%clk 0:04:58.2]} 1... d5 {[%clk 0:04:52.2]} 2. c4 {[%clk 0:04:54.1]}
2... e6 {[%clk 0:04:51.3]} 3. Nf3 {[%clk 0:04:52.7]} 3... Nf6 {[%clk 0:04:49.9]}
4. Nc3 {[%clk 0:04:51.1]} 4... c5 {[%clk 0:04:47.5]} 5. Bg5 {[%clk 0:04:45.9]}
5... Be7 {[%clk 0:04:41.6]} 6. e3 {[%clk 0:04:44.4]} 6... Nc6 {[%clk 0:04:40]}
7. cxd5 {[%clk 0:04:37.6]} 7... exd5 {[%clk 0:04:39]} 8. Bb5 {[%clk 0:04:25]}
8... O-O {[%clk 0:04:36.8]} 9. Bxc6 {[%clk 0:04:22]} 9... bxc6 {[%clk
0:04:35.9]} 10. O-O {[%clk 0:04:16.7]} 10... h6 {[%clk 0:04:28.1]} 11. Bh4
{[%clk 0:04:07.1]} 11... Be6 {[%clk 0:04:23.5]} 12. Ne5 {[%clk 0:04:02.1]} 12...
Qb6 {[%clk 0:04:16.6]} 13. Qb3 {[%clk 0:03:46.1]} 13... Rac8 {[%clk 0:04:12.3]}
14. Qxb6 {[%clk 0:03:44.7]} 14... axb6 {[%clk 0:04:11.2]} 15. f4 {[%clk
0:03:32.4]} 15... c4 {[%clk 0:04:10.1]} 16. Bxf6 {[%clk 0:03:19.1]} 16... Bxf6
{[%clk 0:04:07.8]} 17. g4 {[%clk 0:03:18.4]} 17... Bxe5 {[%clk 0:04:06.4]} 18.
f5 {[%clk 0:03:13]} 18... Bf6 {[%clk 0:03:55.9]} 19. fxe6 {[%clk 0:03:10]} 19...
fxe6 {[%clk 0:03:55.8]} 20. Rf3 {[%clk 0:02:54.2]} 20... b5 {[%clk 0:03:54.5]}
21. Raf1 {[%clk 0:02:51.9]} 21... b4 {[%clk 0:03:53.4]} 22. Nd1 {[%clk 0:02:49]}
22... c5 {[%clk 0:03:51.3]} 23. dxc5 {[%clk 0:02:41.7]} 23... Rxc5 {[%clk
0:03:51.2]} 24. h4 {[%clk 0:02:31.5]} 24... c3 {[%clk 0:03:50.5]} 25. bxc3
{[%clk 0:02:28.2]} 25... bxc3 {[%clk 0:03:49.3]} 26. g5 {[%clk 0:02:03.5]} 26...
hxg5 {[%clk 0:03:49.2]} 27. hxg5 {[%clk 0:02:02.2]} 27... Be7 {[%clk 0:03:41.5]}
28. Rxf8+ {[%clk 0:01:46]} 28... Bxf8 {[%clk 0:03:41.4]} 29. e4 {[%clk
0:01:45.3]} 29... d4 {[%clk 0:03:37.9]} 30. Nf2 {[%clk 0:01:35.2]} 30... Rxg5+
{[%clk 0:03:34.4]} 31. Kh2 {[%clk 0:01:33.8]} 31... Bd6+ {[%clk 0:03:27.7]} 32.
Kh3 {[%clk 0:01:33.1]} 32... Rg3+ {[%clk 0:03:26.1]} 33. Kh4 {[%clk 0:01:31.3]}
33... Rf3 {[%clk 0:03:22.2]} 34. Kg4 {[%clk 0:01:26.7]} 34... Rf4+ {[%clk
0:03:20.9]} 35. Kh3 {[%clk 0:01:24.5]} 35... c2 {[%clk 0:03:19.6]} 36. Kg2
{[%clk 0:01:19.7]} 36... Rxf2+ {[%clk 0:03:13.2]} 37. Kxf2 {[%clk 0:01:17.3]}
37... Bf4 {[%clk 0:03:11.7]} 38. Ke2 {[%clk 0:01:09.7]} 38... c1=Q {[%clk
0:03:11.6]} 39. Rxc1 {[%clk 0:01:08.8]} 39... Bxc1 {[%clk 0:03:10.7]} 40. a4
{[%clk 0:01:08.7]} 40... Ba3 {[%clk 0:03:07.9]} 41. Kd3 {[%clk 0:01:06]} 41...
Bc5 {[%clk 0:03:07.8]} 42. e5 {[%clk 0:01:03.8]} 42... g5 {[%clk 0:03:05.7]} 0-1